[Event "*** Titled Tuesday Blitz"]
[Site "Chess.com"]
[Date "2020.03.03"]
[Round "2"]
[White "MisiekZielony"]
[Black "VALPARAISO37"]
[Result "0-1"]
[WhiteElo "2080"]
[BlackElo "2412"]
[TimeControl "180+1"]
[EndTime "13:19:15 PST"]
[Termination "VALPARAISO37 won on time"]

1. c4 {[%clk 0:03:00]} 1... e6 {[%clk 0:02:59.5]} 2. Nf3 {[%clk 0:02:58.3]} 2...
d5 {[%clk 0:02:59.6]} 3. g3 {[%clk 0:02:57.6]} 3... dxc4 {[%clk 0:02:59.5]} 4.
Qa4+ {[%clk 0:02:54.5]} 4... Nd7 {[%clk 0:02:58.8]} 5. Bg2 {[%clk 0:02:53.4]}
5... a6 {[%clk 0:02:58.8]} 6. Qxc4 {[%clk 0:02:53.3]} 6... b5 {[%clk 0:02:58.9]}
7. Qc6 {[%clk 0:02:45.5]} 7... Rb8 {[%clk 0:02:58.6]} 8. d3 {[%clk 0:02:43.1]}
8... Bb7 {[%clk 0:02:58.7]} 9. Qc2 {[%clk 0:02:42.7]} 9... c5 {[%clk 0:02:58.2]}
10. O-O {[%clk 0:02:42.3]} 10... Rc8 {[%clk 0:02:58.2]} 11. a4 {[%clk
0:02:41.7]} 11... Ngf6 {[%clk 0:02:54.5]} 12. axb5 {[%clk 0:02:40.5]} 12... axb5
{[%clk 0:02:54.3]} 13. Nc3 {[%clk 0:02:29.1]} 13... Qb6 {[%clk 0:02:52.3]} 14.
Qb3 {[%clk 0:02:18.3]} 14... Bc6 {[%clk 0:02:51]} 15. Nd2 {[%clk 0:02:09.1]}
15... b4 {[%clk 0:02:36]} 16. Nc4 {[%clk 0:01:58.6]} 16... Qc7 {[%clk
0:02:32.7]} 17. Ne4 {[%clk 0:01:47.5]} 17... Nxe4 {[%clk 0:02:31.9]} 18. dxe4
{[%clk 0:01:46.8]} 18... Be7 {[%clk 0:02:31]} 19. Bf4 {[%clk 0:01:41.7]} 19...
e5 {[%clk 0:02:31.3]} 20. Be3 {[%clk 0:01:31.2]} 20... Nf6 {[%clk 0:02:30.9]}
21. f3 {[%clk 0:01:28.4]} 21... O-O {[%clk 0:02:29.6]} 22. Rfc1 {[%clk
0:01:25.4]} 22... Bb5 {[%clk 0:02:26.5]} 23. Qc2 {[%clk 0:01:10]} 23... Rcd8
{[%clk 0:02:21.2]} 24. b3 {[%clk 0:01:08.3]} 24... Rd7 {[%clk 0:02:12.6]} 25.
Bh3 {[%clk 0:01:06.9]} 25... Rdd8 {[%clk 0:02:11.6]} 26. Rd1 {[%clk 0:00:35.8]}
26... Rd4 {[%clk 0:02:10.6]} 27. Bxd4 {[%clk 0:00:34.9]} 27... cxd4 {[%clk
0:02:06.9]} 28. Rac1 {[%clk 0:00:32.7]} 28... Qb8 {[%clk 0:01:59]} 29. Qd2
{[%clk 0:00:31.8]} 29... h6 {[%clk 0:01:57.3]} 30. Nb2 {[%clk 0:00:31.3]} 30...
Qb6 {[%clk 0:01:54.7]} 31. Nc4 {[%clk 0:00:29.6]} 31... Qb8 {[%clk 0:01:53.6]}
32. Ra1 {[%clk 0:00:29.4]} 32... Bc5 {[%clk 0:01:49.5]} 33. Qd3 {[%clk
0:00:28.8]} 33... Ne8 {[%clk 0:01:46.3]} 34. Ra5 {[%clk 0:00:27.1]} 34... Nd6
{[%clk 0:01:45]} 35. Rda1 {[%clk 0:00:26.1]} 35... Bxc4 {[%clk 0:01:41.2]} 36.
bxc4 {[%clk 0:00:25.7]} 36... Qc7 {[%clk 0:01:35.8]} 37. Ra6 {[%clk 0:00:24.6]}
37... h5 {[%clk 0:01:17.9]} 0-1

[Event "*** Titled Tuesday Blitz"]
[Site "Chess.com"]
[Date "2020.03.03"]
[Round "2"]
[White "adricalderon8"]
[Black "CrushingKings"]
[Result "1-0"]
[WhiteElo "2430"]
[BlackElo "2155"]
[TimeControl "180+1"]
[EndTime "13:19:18 PST"]
[Termination "adricalderon8 won by resignation"]

1. e4 {[%clk 0:03:00.9]} 1... c6 {[%clk 0:02:53.8]} 2. d4 {[%clk 0:03:00.3]}
2... g6 {[%clk 0:02:54.2]} 3. Nc3 {[%clk 0:02:59.7]} 3... Bg7 {[%clk 0:02:54.7]}
4. h4 {[%clk 0:03:00.2]} 4... h5 {[%clk 0:02:54.1]} 5. f3 {[%clk 0:02:56.1]}
5... d5 {[%clk 0:02:54.4]} 6. Be3 {[%clk 0:02:55.4]} 6... Nf6 {[%clk 0:02:49.5]}
7. e5 {[%clk 0:02:53.8]} 7... Ng8 {[%clk 0:02:49.7]} 8. Qd2 {[%clk 0:02:53.7]}
8... Nh6 {[%clk 0:02:49.9]} 9. O-O-O {[%clk 0:02:51.7]} 9... b5 {[%clk
0:02:44.4]} 10. Nh3 {[%clk 0:02:48.8]} 10... Nf5 {[%clk 0:02:39.7]} 11. Ng5
{[%clk 0:02:48.2]} 11... f6 {[%clk 0:02:34.8]} 12. exf6 {[%clk 0:02:46.3]} 12...
exf6 {[%clk 0:02:35.7]} 13. Nh3 {[%clk 0:02:46.9]} 13... Nxh4 {[%clk 0:02:09.1]}
14. Nf4 {[%clk 0:02:44.7]} 14... g5 {[%clk 0:02:09.6]} 15. Rxh4 {[%clk
0:02:43.3]} 15... gxh4 {[%clk 0:02:07.8]} 16. Bd3 {[%clk 0:02:44]} 16... Kd7
{[%clk 0:02:00.6]} 17. Ng6 {[%clk 0:02:16.1]} 17... Re8 {[%clk 0:01:59.1]} 18.
Bf4 {[%clk 0:02:16.2]} 18... Qb6 {[%clk 0:01:31]} 19. Qf2 {[%clk 0:02:08.9]}
19... Kd8 {[%clk 0:01:12.6]} 20. Qxh4 {[%clk 0:02:08.6]} 20... Be6 {[%clk
0:01:12.9]} 21. Qxh5 {[%clk 0:02:06.4]} 21... Nd7 {[%clk 0:01:03.4]} 22. Qh7
{[%clk 0:02:05.6]} 22... Rg8 {[%clk 0:00:58.8]} 23. Bf5 {[%clk 0:02:01.8]} 23...
Bf7 {[%clk 0:00:56.8]} 24. Bd6 {[%clk 0:01:49.2]} 24... a5 {[%clk 0:00:40]} 25.
Re1 {[%clk 0:01:41.8]} 25... Qxd4 {[%clk 0:00:37.7]} 26. Bg3 {[%clk 0:01:33.7]}
26... Ra7 {[%clk 0:00:33]} 27. Ne7 {[%clk 0:01:24.9]} 27... Qc5 {[%clk
0:00:13.1]} 28. Nxg8 {[%clk 0:01:23.1]} 28... Qf8 {[%clk 0:00:13.6]} 29. Ne7
{[%clk 0:01:19.6]} 29... Ne5 {[%clk 0:00:13.8]} 30. Bxe5 {[%clk 0:01:18.8]}
30... Rxe7 {[%clk 0:00:14.3]} 31. Bg3 {[%clk 0:01:16.3]} 31... Be6 {[%clk
0:00:13]} 32. Kb1 {[%clk 0:01:09.7]} 32... Bg8 {[%clk 0:00:10.8]} 33. Qg6 {[%clk
0:01:08.3]} 33... Bf7 {[%clk 0:00:09.6]} 34. Qg4 {[%clk 0:01:07.8]} 34... b4
{[%clk 0:00:08.2]} 35. Na4 {[%clk 0:01:07.3]} 35... Rxe1+ {[%clk 0:00:07.7]} 36.
Bxe1 {[%clk 0:01:07.2]} 36... Qe8 {[%clk 0:00:07.7]} 37. Qg3 {[%clk 0:01:06.5]}
37... Ke7 {[%clk 0:00:04]} 38. Qxg7 {[%clk 0:01:03.3]} 1-0

[Event "*** Titled Tuesday Blitz"]
[Site "Chess.com"]
[Date "2020.03.03"]
[Round "2"]
[White "kayrakamer"]
[Black "pedroholly22"]
[Result "1-0"]
[WhiteElo "2609"]
[BlackElo "2324"]
[TimeControl "180+1"]
[EndTime "13:19:21 PST"]
[Termination "kayrakamer won by checkmate"]

1. Nf3 {[%clk 0:03:00.9]} 1... Nf6 {[%clk 0:02:59.5]} 2. d4 {[%clk 0:03:01.3]}
2... e6 {[%clk 0:02:57.2]} 3. c4 {[%clk 0:03:00.3]} 3... c5 {[%clk 0:02:56.4]}
4. g3 {[%clk 0:02:57.3]} 4... cxd4 {[%clk 0:02:55.6]} 5. Nxd4 {[%clk 0:02:58.2]}
5... Nc6 {[%clk 0:02:56.5]} 6. Bg2 {[%clk 0:02:56.7]} 6... Be7 {[%clk
0:02:43.2]} 7. O-O {[%clk 0:02:53.8]} 7... O-O {[%clk 0:02:42.3]} 8. Nc3 {[%clk
0:02:53.5]} 8... a6 {[%clk 0:02:40.7]} 9. b3 {[%clk 0:02:44.1]} 9... Qb6 {[%clk
0:02:39.5]} 10. Nc2 {[%clk 0:02:36]} 10... Rd8 {[%clk 0:02:36.9]} 11. Be3 {[%clk
0:02:30.2]} 11... Qc7 {[%clk 0:02:34.3]} 12. h3 {[%clk 0:02:13.9]} 12... Nb4
{[%clk 0:02:30.3]} 13. Na4 {[%clk 0:01:59.3]} 13... Nxc2 {[%clk 0:01:56.1]} 14.
Qxc2 {[%clk 0:01:49]} 14... Qe5 {[%clk 0:01:52]} 15. Nb6 {[%clk 0:01:34.3]}
15... Qb8 {[%clk 0:01:41]} 16. Nxa8 {[%clk 0:01:25.4]} 16... Qxa8 {[%clk
0:01:41.9]} 17. Bb6 {[%clk 0:01:21.1]} 17... Re8 {[%clk 0:01:41.9]} 18. Rad1
{[%clk 0:01:21.3]} 18... d6 {[%clk 0:01:42.3]} 19. Bc7 {[%clk 0:01:14]} 19... d5
{[%clk 0:01:33.9]} 20. Be5 {[%clk 0:00:55]} 20... dxc4 {[%clk 0:01:31.1]} 21.
Qxc4 {[%clk 0:00:50.4]} 21... Nd5 {[%clk 0:01:29.5]} 22. e4 {[%clk 0:00:36.6]}
22... b5 {[%clk 0:01:24.4]} 23. Qd4 {[%clk 0:00:32.1]} 23... Nf6 {[%clk
0:01:21]} 24. Bxf6 {[%clk 0:00:32.2]} 24... gxf6 {[%clk 0:01:20.9]} 25. e5
{[%clk 0:00:31.2]} 25... fxe5 {[%clk 0:01:20]} 26. Qg4+ {[%clk 0:00:30.6]} 26...
Kf8 {[%clk 0:01:17.8]} 27. Bxa8 {[%clk 0:00:30.8]} 27... a5 {[%clk 0:01:15.5]}
28. Bc6 {[%clk 0:00:29.8]} 28... Rd8 {[%clk 0:01:15.5]} 29. Rxd8+ {[%clk
0:00:28.8]} 29... Bxd8 {[%clk 0:01:16.4]} 30. Rd1 {[%clk 0:00:29.4]} 30... Bb6
{[%clk 0:01:16.2]} 31. Qg5 {[%clk 0:00:26.8]} 31... b4 {[%clk 0:01:14.3]} 32.
Rd8+ {[%clk 0:00:26.8]} 32... Bxd8 {[%clk 0:01:14.4]} 33. Qxd8+ {[%clk
0:00:27.7]} 33... Kg7 {[%clk 0:01:14.8]} 34. Qxc8 {[%clk 0:00:27.9]} 34... Kf6
{[%clk 0:01:15.7]} 35. Be8 {[%clk 0:00:26.5]} 35... e4 {[%clk 0:01:16.6]} 36.
Qd7 {[%clk 0:00:26.6]} 36... Ke5 {[%clk 0:01:17.5]} 37. Qc7+ {[%clk 0:00:23.7]}
37... Kd4 {[%clk 0:01:18.4]} 38. Qc4+ {[%clk 0:00:21.5]} 38... Ke5 {[%clk
0:01:17.8]} 39. Bxf7 {[%clk 0:00:22.4]} 39... Kf6 {[%clk 0:01:17.2]} 40. Qxe6+
{[%clk 0:00:22.6]} 40... Kg7 {[%clk 0:01:17.3]} 41. Bh5 {[%clk 0:00:21.6]} 41...
Kf8 {[%clk 0:01:18.2]} 42. Qf7# {[%clk 0:00:20.3]} 1-0

[Event "*** Titled Tuesday Blitz"]
[Site "Chess.com"]
[Date "2020.03.03"]
[Round "2"]
[White "Entilza"]
[Black "Playgood28"]
[Result "1-0"]
[WhiteElo "2492"]
[BlackElo "2252"]
[TimeControl "180+1"]
[EndTime "13:19:22 PST"]
[Termination "Entilza won on time"]

1. d4 {[%clk 0:03:00.9]} 1... f5 {[%clk 0:02:58.8]} 2. c4 {[%clk 0:03:01.8]}
2... Nf6 {[%clk 0:02:57.6]} 3. Nc3 {[%clk 0:03:01.7]} 3... g6 {[%clk 0:02:56.8]}
4. Nf3 {[%clk 0:03:02.1]} 4... Bg7 {[%clk 0:02:56.5]} 5. g3 {[%clk 0:03:02.3]}
5... d6 {[%clk 0:02:56.4]} 6. Bg2 {[%clk 0:03:02.6]} 6... O-O {[%clk 0:02:56.7]}
7. b4 {[%clk 0:03:02.6]} 7... Ne4 {[%clk 0:02:32.2]} 8. Nxe4 {[%clk 0:02:55.3]}
8... fxe4 {[%clk 0:02:31]} 9. Ng5 {[%clk 0:02:55.7]} 9... c5 {[%clk 0:02:28]}
10. e3 {[%clk 0:02:39.4]} 10... cxd4 {[%clk 0:02:13.5]} 11. exd4 {[%clk
0:02:40.3]} 11... Qb6 {[%clk 0:02:11.1]} 12. Nxe4 {[%clk 0:02:29.7]} 12... Qxb4+
{[%clk 0:02:02.9]} 13. Qd2 {[%clk 0:02:19.8]} 13... Qxc4 {[%clk 0:01:59]} 14.
Bb2 {[%clk 0:02:18.4]} 14... Nc6 {[%clk 0:01:50.9]} 15. d5 {[%clk 0:02:13.6]}
15... Ne5 {[%clk 0:01:46.4]} 16. Bxe5 {[%clk 0:02:03.6]} 16... Bxe5 {[%clk
0:01:43.2]} 17. Rc1 {[%clk 0:02:03.2]} 17... Qa6 {[%clk 0:01:32.6]} 18. Bf1
{[%clk 0:01:49]} 18... Qa3 {[%clk 0:01:09.1]} 19. Bg2 {[%clk 0:01:43.9]} 19...
Qa6 {[%clk 0:01:06.5]} 20. Bf1 {[%clk 0:01:42.2]} 20... Qa3 {[%clk 0:01:04]} 21.
Be2 {[%clk 0:01:39.5]} 21... Bf5 {[%clk 0:00:59.3]} 22. f3 {[%clk 0:01:36.8]}
22... Bxe4 {[%clk 0:00:57.2]} 23. fxe4 {[%clk 0:01:36.9]} 23... Qa4 {[%clk
0:00:48.1]} 24. Rc4 {[%clk 0:01:30.2]} 24... Qa3 {[%clk 0:00:46.3]} 25. Rf1
{[%clk 0:01:29.8]} 25... Rxf1+ {[%clk 0:00:32.6]} 26. Kxf1 {[%clk 0:01:30.7]}
26... Rf8+ {[%clk 0:00:31.6]} 27. Kg2 {[%clk 0:01:30.6]} 27... b5 {[%clk
0:00:19.1]} 28. Rc7 {[%clk 0:01:21.7]} 28... b4 {[%clk 0:00:15.5]} 29. Rxe7
{[%clk 0:01:17.2]} 29... Qa5 {[%clk 0:00:12.5]} 30. Qh6 {[%clk 0:01:09.7]} 30...
Rf7 {[%clk 0:00:07.2]} 31. Rxf7 {[%clk 0:01:09.2]} 31... Kxf7 {[%clk 0:00:06.5]}
32. Qxh7+ {[%clk 0:01:05.6]} 32... Kf6 {[%clk 0:00:06.8]} 33. Qh8+ {[%clk
0:01:03.6]} 33... Kf7 {[%clk 0:00:05.4]} 34. Qh7+ {[%clk 0:01:02]} 34... Kf6
{[%clk 0:00:05.2]} 35. Bc4 {[%clk 0:01:01.8]} 35... Qc5 {[%clk 0:00:01.8]} 36.
Bb3 {[%clk 0:01:00.3]} 1-0

[Event "*** Titled Tuesday Blitz"]
[Site "Chess.com"]
[Date "2020.03.03"]
[Round "2"]
[White "RitvarsReimanis"]
[Black "GadimbayliA"]
[Result "0-1"]
[WhiteElo "2625"]
[BlackElo "2901"]
[TimeControl "180+1"]
[EndTime "13:19:23 PST"]
[Termination "GadimbayliA won by resignation"]

1. d4 {[%clk 0:03:00.9]} 1... d5 {[%clk 0:02:58.9]} 2. c4 {[%clk 0:02:55.7]}
2... e5 {[%clk 0:02:57.7]} 3. dxe5 {[%clk 0:02:52.6]} 3... d4 {[%clk 0:02:58.6]}
4. Bf4 {[%clk 0:02:44.1]} 4... Nc6 {[%clk 0:02:54.8]} 5. Nf3 {[%clk 0:02:43.6]}
5... Nge7 {[%clk 0:02:52.9]} 6. Nbd2 {[%clk 0:02:37.9]} 6... Ng6 {[%clk
0:02:51.4]} 7. e3 {[%clk 0:02:36.6]} 7... Bf5 {[%clk 0:02:41.7]} 8. exd4 {[%clk
0:02:17.3]} 8... Nxf4 {[%clk 0:02:40.7]} 9. Qa4 {[%clk 0:02:00.8]} 9... Qd7
{[%clk 0:02:26.7]} 10. O-O-O {[%clk 0:01:33.9]} 10... Nb4 {[%clk 0:02:02]} 11.
Qxd7+ {[%clk 0:01:10.2]} 11... Kxd7 {[%clk 0:02:02.9]} 12. Nb3 {[%clk
0:00:58.5]} 12... Nfd3+ {[%clk 0:01:59.8]} 13. Bxd3 {[%clk 0:00:56.1]} 13...
Nxd3+ {[%clk 0:02:00.7]} 14. Rxd3 {[%clk 0:00:56.4]} 14... Bxd3 {[%clk 0:02:01]}
15. e6+ {[%clk 0:00:56.7]} 15... Kxe6 {[%clk 0:01:54.9]} 16. Re1+ {[%clk
0:00:52.1]} 16... Kf6 {[%clk 0:01:53.2]} 17. Ne5 {[%clk 0:00:52.5]} 17... Bf5
{[%clk 0:01:51.5]} 18. g4 {[%clk 0:00:52.7]} 18... Bb4 {[%clk 0:01:48.9]} 19.
Re3 {[%clk 0:00:49.3]} 19... Be6 {[%clk 0:01:20.9]} 20. d5 {[%clk 0:00:45.6]}
20... Bc8 {[%clk 0:00:45.4]} 21. g5+ {[%clk 0:00:40.6]} 21... Kxg5 {[%clk
0:00:45.4]} 22. Nxf7+ {[%clk 0:00:38.2]} 22... Kf6 {[%clk 0:00:46.3]} 23. Nxh8
{[%clk 0:00:35.6]} 23... Bf5 {[%clk 0:00:46.6]} 24. c5 {[%clk 0:00:31.6]} 24...
b6 {[%clk 0:00:44.6]} 25. d6 {[%clk 0:00:09.3]} 25... cxd6 {[%clk 0:00:40.6]}
26. c6 {[%clk 0:00:09]} 26... Rxh8 {[%clk 0:00:40.4]} 27. Rf3 {[%clk 0:00:02.2]}
27... Rc8 {[%clk 0:00:38.9]} 28. Kd1 {[%clk 0:00:01.3]} 28... g6 {[%clk
0:00:37.6]} 29. Re3 {[%clk 0:00:01.4]} 29... Bc5 {[%clk 0:00:36.7]} 30. Nd4
{[%clk 0:00:02.3]} 30... Bxd4 {[%clk 0:00:36.8]} 0-1

[Event "*** Titled Tuesday Blitz"]
[Site "Chess.com"]
[Date "2020.03.03"]
[Round "2"]
[White "DinaBelenkaya"]
[Black "metra93"]
[Result "0-1"]
[WhiteElo "2286"]
[BlackElo "2600"]
[TimeControl "180+1"]
[EndTime "13:19:26 PST"]
[Termination "metra93 won on time"]

1. e4 {[%clk 0:03:00.9]} 1... c5 {[%clk 0:02:58.7]} 2. Nf3 {[%clk 0:02:55.7]}
2... g6 {[%clk 0:02:57.4]} 3. d4 {[%clk 0:02:52.7]} 3... cxd4 {[%clk 0:02:56.5]}
4. Nxd4 {[%clk 0:02:51]} 4... Bg7 {[%clk 0:02:56.3]} 5. Nc3 {[%clk 0:02:50.5]}
5... Nc6 {[%clk 0:02:56]} 6. Nf3 {[%clk 0:02:50.3]} 6... d6 {[%clk 0:02:54.6]}
7. h3 {[%clk 0:02:48.5]} 7... Nf6 {[%clk 0:02:53.9]} 8. Bc4 {[%clk 0:02:47.6]}
8... O-O {[%clk 0:02:52.6]} 9. O-O {[%clk 0:02:48.1]} 9... a6 {[%clk 0:02:51.9]}
10. Re1 {[%clk 0:02:48.3]} 10... b5 {[%clk 0:02:51.7]} 11. Bb3 {[%clk
0:02:48.9]} 11... Bb7 {[%clk 0:02:51.2]} 12. Nd5 {[%clk 0:02:38.9]} 12... Na5
{[%clk 0:02:40.6]} 13. c3 {[%clk 0:02:36]} 13... Nxb3 {[%clk 0:02:38]} 14. axb3
{[%clk 0:02:35.5]} 14... e6 {[%clk 0:02:34.8]} 15. Nxf6+ {[%clk 0:02:19.2]}
15... Bxf6 {[%clk 0:02:35.7]} 16. Bh6 {[%clk 0:02:18.8]} 16... Re8 {[%clk
0:02:35.1]} 17. Qd3 {[%clk 0:02:08.7]} 17... Qc7 {[%clk 0:02:19.8]} 18. Bf4
{[%clk 0:01:45.9]} 18... Rad8 {[%clk 0:02:17]} 19. h4 {[%clk 0:01:41.2]} 19...
Qc5 {[%clk 0:02:10.6]} 20. Bg5 {[%clk 0:01:37]} 20... Be7 {[%clk 0:02:06.9]} 21.
b4 {[%clk 0:01:33.7]} 21... Qb6 {[%clk 0:01:53.8]} 22. Kh2 {[%clk 0:01:23.1]}
22... f6 {[%clk 0:01:48.5]} 23. Be3 {[%clk 0:01:18.8]} 23... Qc7 {[%clk
0:01:44.5]} 24. Nd4 {[%clk 0:01:13.4]} 24... d5+ {[%clk 0:01:40.1]} 25. e5
{[%clk 0:01:10.6]} 25... Qxe5+ {[%clk 0:01:35.4]} 26. f4 {[%clk 0:01:07.6]}
26... Qd6 {[%clk 0:01:34.1]} 27. Nf3 {[%clk 0:00:37.2]} 27... Qc7 {[%clk
0:01:19.5]} 28. Bd2 {[%clk 0:00:22.7]} 28... Bd6 {[%clk 0:01:19.1]} 29. g3
{[%clk 0:00:19.4]} 29... e5 {[%clk 0:01:19.3]} 30. fxe5 {[%clk 0:00:16.4]} 30...
fxe5 {[%clk 0:01:20.2]} 31. Ng5 {[%clk 0:00:16.7]} 31... e4 {[%clk 0:01:19.1]}
32. Qe3 {[%clk 0:00:17]} 32... Rf8 {[%clk 0:01:14.2]} 33. Rf1 {[%clk 0:00:16.8]}
33... Qe7 {[%clk 0:01:08.4]} 34. Kg2 {[%clk 0:00:10.3]} 34... Bc8 {[%clk
0:01:06.5]} 35. Qd4 {[%clk 0:00:06]} 35... Qe5 {[%clk 0:00:57.5]} 36. Rxf8+
{[%clk 0:00:04.8]} 36... Rxf8 {[%clk 0:00:56.5]} 37. Qxe5 {[%clk 0:00:03.1]}
37... Bxe5 {[%clk 0:00:57.4]} 38. Re1 {[%clk 0:00:01.6]} 38... h6 {[%clk
0:00:55.5]} 39. Nh3 {[%clk 0:00:01.2]} 39... Kg7 {[%clk 0:00:55.2]} 0-1

[Event "*** Titled Tuesday Blitz"]
[Site "Chess.com"]
[Date "2020.03.03"]
[Round "2"]
[White "SanchezKelvin"]
[Black "MatthewG-p4p"]
[Result "0-1"]
[WhiteElo "2350"]
[BlackElo "2787"]
[TimeControl "180+1"]
[EndTime "13:19:26 PST"]
[Termination "MatthewG-p4p won by resignation"]

1. d4 {[%clk 0:03:00.3]} 1... Nf6 {[%clk 0:02:53.5]} 2. c4 {[%clk 0:03:00.2]}
2... c5 {[%clk 0:02:53.7]} 3. d5 {[%clk 0:02:58.5]} 3... e6 {[%clk 0:02:54]} 4.
Nc3 {[%clk 0:02:48.1]} 4... exd5 {[%clk 0:02:50.2]} 5. cxd5 {[%clk 0:02:47.4]}
5... d6 {[%clk 0:02:51.1]} 6. e4 {[%clk 0:02:38]} 6... g6 {[%clk 0:02:52]} 7.
Nf3 {[%clk 0:02:36]} 7... Bg7 {[%clk 0:02:52.4]} 8. h3 {[%clk 0:02:35.9]} 8...
O-O {[%clk 0:02:52.2]} 9. Bd3 {[%clk 0:02:35.8]} 9... b5 {[%clk 0:02:52.6]} 10.
Nxb5 {[%clk 0:02:34.6]} 10... Re8 {[%clk 0:02:52.5]} 11. O-O {[%clk 0:02:33.3]}
11... Nxe4 {[%clk 0:02:51.2]} 12. Re1 {[%clk 0:02:30.6]} 12... a6 {[%clk
0:02:51]} 13. Na3 {[%clk 0:02:29.2]} 13... Nf6 {[%clk 0:02:51]} 14. Rxe8+ {[%clk
0:02:28.7]} 14... Nxe8 {[%clk 0:02:51.2]} 15. Nc4 {[%clk 0:02:28.3]} 15... Nd7
{[%clk 0:02:51.6]} 16. Bf4 {[%clk 0:02:25.1]} 16... Nb6 {[%clk 0:02:51.1]} 17.
Nxb6 {[%clk 0:02:17.3]} 17... Qxb6 {[%clk 0:02:52]} 18. Rb1 {[%clk 0:02:15.9]}
18... Bd7 {[%clk 0:02:47.7]} 19. b3 {[%clk 0:02:11.9]} 19... Nc7 {[%clk
0:02:46.2]} 20. Nd2 {[%clk 0:02:01.5]} 20... Nb5 {[%clk 0:02:45.8]} 21. Nc4
{[%clk 0:02:00.6]} 21... Qc7 {[%clk 0:02:44.7]} 22. Qf3 {[%clk 0:01:47.5]} 22...
Bf8 {[%clk 0:02:41.2]} 23. Qg3 {[%clk 0:01:47.1]} 23... Rd8 {[%clk 0:02:32.8]}
24. a4 {[%clk 0:01:44.1]} 24... Nc3 {[%clk 0:02:32.9]} 25. Rc1 {[%clk 0:01:41]}
25... Nxd5 {[%clk 0:02:32.7]} 26. Bxd6 {[%clk 0:01:38.1]} 26... Bxd6 {[%clk
0:02:29.1]} 27. Qxd6 {[%clk 0:01:37.3]} 27... Be6 {[%clk 0:02:18.4]} 28. Qxc7
{[%clk 0:01:32.3]} 28... Nxc7 {[%clk 0:02:19.3]} 29. Be2 {[%clk 0:01:29.7]}
29... Nd5 {[%clk 0:02:17.7]} 30. Na5 {[%clk 0:01:24.2]} 30... Nf4 {[%clk
0:02:16.7]} 31. Bf1 {[%clk 0:01:23.2]} 31... Rd2 {[%clk 0:02:06.6]} 32. Bxa6
{[%clk 0:00:58.4]} 32... Rb2 {[%clk 0:02:01.3]} 33. Bc4 {[%clk 0:00:55.7]} 33...
Kg7 {[%clk 0:01:56.9]} 34. h4 {[%clk 0:00:51.4]} 34... Bf5 {[%clk 0:01:47.8]}
35. Bf1 {[%clk 0:00:50.2]} 35... h5 {[%clk 0:01:44.4]} 36. Rxc5 {[%clk
0:00:49.2]} 36... Rb1 {[%clk 0:01:44.6]} 37. Rxf5 {[%clk 0:00:37.7]} 37... gxf5
{[%clk 0:01:43.3]} 38. g3 {[%clk 0:00:38.1]} 38... Nd5 {[%clk 0:01:34.4]} 39.
Kg2 {[%clk 0:00:37.1]} 39... Rb2 {[%clk 0:01:34.9]} 40. Kf3 {[%clk 0:00:32]}
40... Nf6 {[%clk 0:01:32]} 41. Bh3 {[%clk 0:00:26]} 41... Kg6 {[%clk 0:01:28]}
42. Ke3 {[%clk 0:00:21.9]} 42... Ne4 {[%clk 0:01:25.6]} 43. f3 {[%clk
0:00:21.5]} 43... Nxg3 {[%clk 0:01:23.4]} 44. Kf4 {[%clk 0:00:21.3]} 44... Ne2+
{[%clk 0:01:23.6]} 45. Ke5 {[%clk 0:00:20]} 45... f6+ {[%clk 0:01:22.4]} 46. Ke6
{[%clk 0:00:19.7]} 46... Nf4+ {[%clk 0:01:22.5]} 0-1